bitfinex-derivatives/quotes_SOLF0:USTF0_20250127
["timestamp","ask_amount","ask_price","bid_price","bid_amount"]
[1737976260657,4.4706,223.78,223.77,0.03334997]
[1737976260864,4.4706,223.78,223.77,4.997e-05]
[1737976260865,42.51059871,223.78,223.77,4.997e-05]
[1737976261061,38.03999871,223.78,223.64,1.4337]
[1737976261270,38.03999871,223.74,223.6,1.425]
[1737976261480,38.03999871,223.7,223.6,1.425]
[1737976261667,4.4738,223.63,223.6,1.425]
[1737976261866,38.03999871,223.7,223.6,1.425]
[1737976262253,0.02903256,223.67,223.6,1.425]
[1737976262463,4.4737,223.65,223.6,1.425]
[1737976262765,0.02903256,223.67,223.6,1.425]
[1737976262958,0.02903256,223.67,223.61,4.4745]
[1737976263156,0.02903256,223.67,223.6,1.425]
[1737976263563,0.02903256,223.67,223.63,4.474]
[1737976263763,13.45,223.91,223.6,1.425]
[1737976264068,0.2655,223.86,223.64,4.4737]
[1737976264564,0.2655,223.86,223.6,1.425]
[1737976264767,38.03999871,223.82,223.6,1.425]
[1737976264968,0.02940166,223.71,223.67,0.03068745]
[1737976265161,38.03999871,223.82,223.63,41.29999871]
[1737976265358,38.03999871,223.82,223.63,3.26]
[1737976265658,38.03999871,223.82,223.6,4.685]
[1737976265864,4.4725,223.71,223.64,4.4738]
[1737976266167,38.03999871,223.78,223.6,4.685]
[1737976266465,0.02970636,223.7,223.65,0.03369184]
[1737976267267,0.02970636,223.7,223.66,4.4734]
[1737976268070,0.02970636,223.7,223.67,4.4732]
[1737976268269,0.2655,223.86,223.65,0.03369184]
[1737976268270,38.03999871,223.82,223.65,0.03369184]
[1737976268465,0.0724,223.86,223.65,0.03369184]
[1737976268666,0.0724,223.86,223.63,41.29999871]
[1737976268862,41.29999871,223.89,223.67,38.03999871]
[1737976269067,38.03999871,223.89,223.67,38.03999871]
[1737976269368,0.03370457,223.8,223.77,4.4712]
[1737976269560,38.03999871,223.89,223.76,0.03150316]
[1737976269763,38.03999871,223.85,223.63,41.29999871]
[1737976270366,38.03999871,223.92,223.71,38.03999871]
[1737976270566,4.4694,223.87,223.72,1.5352]
[1737976270869,38.03999871,223.92,223.79,0.028328]
[1737976270870,0.03258035,223.84,223.79,0.028328]
[1737976272166,4.4705,223.81,223.79,2.8e-05]
[1737976273776,38.03999871,223.82,223.79,2.8e-05]
[1737976274070,4.4707,223.8,223.79,2.8e-05]
[1737976274473,4.4707,223.8,223.65,1.5352]
[1737976274678,38.03999871,223.82,223.72,4.4722]
[1737976275071,38.03999871,223.82,223.66,1.3249]
[1737976275271,38.03999871,223.86,223.66,1.3249]
[1737976275476,0.0724,223.93,223.69,38.03999871]
[1737976275477,38.03999871,223.9,223.69,38.03999871]
[1737976275776,4.4697,223.85,223.79,4.4709]
[1737976275979,38.03999871,223.9,223.77,0.03086385]
[1737976275980,0.02934809,223.82,223.77,0.03086385]
[1737976276887,4.4705,223.81,223.77,0.03086385]
[1737976277370,4.4711,223.78,223.77,0.03086385]
[1737976277775,0.02934809,223.82,223.77,0.03086385]
[1737976278775,0.02934809,223.82,223.77,4.50216385]
[1737976278975,0.02934809,223.82,223.77,0.03086385]
[1737976280977,6.01708719,223.92,223.77,0.03086385]
[1737976281474,6.01708719,223.92,223.75,23.42147803]
[1737976281878,24.06834877,223.94,223.79,23.42147803]
[1737976282075,0.0340285,223.86,223.81,0.03047453]
[1737976282280,19.65734877,223.94,223.83,23.42147803]
[1737976282971,19.65734877,223.94,223.8,2.9262]
[1737976283179,19.65734877,223.94,223.9,4.4687]
[1737976283675,4.4683,223.92,223.85,4.4695]
[1737976283875,19.69065195,223.94,223.8,2.9262]
[1737976284071,19.69065195,223.94,223.9,3.715e-05]
[1737976284274,4.4695,223.87,223.8,2.9262]
[1737976284472,23.42147803,223.92,223.8,2.9262]
[1737976284676,38.05221729,223.91,223.8,2.9262]
[1737976284872,38.05221729,223.91,223.7,3.26]
[1737976285075,38.05221729,223.83,223.7,1.5817]
[1737976285277,4.4704,223.82,223.78,0.02922387]
[1737976285478,38.08079812,223.83,223.78,0.02922387]
[1737976285872,0.02858083,223.83,223.78,0.02922387]
[1737976286583,4.4707,223.8,223.78,0.02922387]
[1737976287183,0.02858083,223.83,223.78,0.02922387]
[1737976287983,4.49888083,223.83,223.78,0.02922387]
[1737976288283,0.02858083,223.83,223.78,0.02922387]
[1737976289581,39.91521729,223.95,223.78,0.02922387]
[1737976289881,39.91521729,223.95,223.74,38.05221729]
[1737976289882,38.05221729,223.95,223.74,38.05221729]
[1737976290177,18.05126158,223.97,223.89,4.4688]
[1737976290782,4.4675,223.96,223.89,4.4688]
[1737976290982,0.02825212,223.95,223.91,0.03140647]
[1737976291281,18.05126158,223.97,223.82,38.05221729]
[1737976291482,0.03413414,223.95,223.91,0.02891366]
[1737976292181,4.50183414,223.95,223.91,0.02891366]
[1737976292382,0.03413414,223.95,223.91,0.02891366]
[1737976292781,4.4682,223.93,223.91,0.02891366]
[1737976292985,38.08635143,223.95,223.74,3.24]
[1737976293185,38.05221729,223.91,223.75,4.4074]
[1737976293383,38.05221729,223.91,223.78,4.4709]
[1737976293883,38.05221729,223.91,223.75,4.4074]
[1737976294287,0.03092396,223.87,223.82,0.03050163]
[1737976294687,4.4695,223.86,223.82,0.03050163]
[1737976294986,0.03092396,223.87,223.82,0.03050163]
[1737976297282,4.50022396,223.87,223.82,0.03050163]
[1737976297483,0.03092396,223.87,223.82,0.03050163]
[1737976297881,38.05221729,223.99,223.82,0.03050163]
[1737976298080,4.31576086,224.02,223.82,38.05221729]
[1737976299081,0.03307336,223.94,223.9,0.02915326]
[1737976299990,0.03307336,223.94,223.91,4.4684]
[1737976300190,0.03307336,223.94,223.9,0.02915326]
[1737976301988,4.4683,223.92,223.9,0.02915326]
[1737976302289,0.03307336,223.94,223.9,0.02915326]
[1737976302590,4.4682,223.93,223.9,0.02915326]
[1737976302786,0.03307336,223.94,223.9,0.02915326]
[1737976302982,38.05221729,223.91,223.65,38.05221729]
[1737976303189,38.05221729,223.84,223.65,1.6075]
[1737976303390,38.05221729,223.84,223.66,0.77844046]
[1737976303684,4.4703,223.82,223.73,4.472]
[1737976304182,0.03282228,223.8,223.75,0.02930217]
[1737976304383,0.03282228,223.8,223.77,4.4712]
[1737976304587,4.4694,223.87,223.76,1.3596]
[1737976304790,0.02889599,223.81,223.77,1.4736]
[1737976304985,38.05221729,223.92,223.77,1.4736]
[1737976305691,4.469,223.89,223.78,4.471]
[1737976306082,4.4697,223.85,223.81,0.03033871]
[1737976306283,38.05221729,223.88,223.77,1.4736]
[1737976306488,38.05221729,223.88,223.74,4.4717]
[1737976306689,4.4696,223.86,223.71,1.3596]
[1737976306886,0.0337324,223.83,223.79,0.02840467]
[1737976309790,38.05221729,223.8,223.79,0.02840467]
[1737976310094,4.4713,223.77,223.7,4.4726]
[1737976310797,38.05221729,223.8,223.62,3.018]
[1737976310998,38.05221729,223.8,223.63,0.77845329]
[1737976311193,0.02851607,223.73,223.69,0.03080622]
[1737976311394,38.05221729,223.84,223.65,38.05221729]
[1737976311691,38.05221729,223.88,223.66,0.77845329]
[1737976311887,38.05221729,223.88,223.81,4.4705]
[1737976312088,38.05221729,223.88,223.65,38.05221729]
[1737976312292,38.05221729,223.88,223.66,0.77823482]
[1737976312493,0.02992093,223.79,223.75,4.4716]
[1737976312696,0.02992093,223.79,223.76,1.5413]
[1737976312896,23.41851529,223.89,223.76,1.5413]
[1737976313096,0.02902506,223.8,223.76,1.5413]
[1737976313296,4.4691,223.88,223.8,4.4705]
[1737976313497,23.41851529,223.89,223.8,0.03402742]
[1737976313695,0.0328306,223.86,223.8,0.03402742]
[1737976313899,23.41851529,223.85,223.8,0.03402742]
[1737976314101,23.41851529,223.81,223.66,3.6948035]
[1737976314398,23.41851529,223.73,223.57,13.11885026]
[1737976314590,23.41851529,223.73,223.6,1.5413]
[1737976314791,23.41851529,223.69,223.61,0.77853099]
[1737976314992,23.41851529,223.69,223.55,1.5413]
[1737976315191,0.03018146,223.67,223.55,1.5413]
[1737976315397,0.03018146,223.67,223.63,0.03248162]
[1737976316796,4.4735,223.66,223.63,0.03248162]
[1737976317294,0.03018146,223.67,223.63,0.03248162]
[1737976319003,4.50358146,223.67,223.63,0.03248162]
[1737976319392,0.03018146,223.67,223.63,0.03248162]
[1737976319991,4.50348146,223.67,223.63,0.03248162]
[1737976320298,0.03018146,223.67,223.63,0.03248162]
[1737976320601,4.4737,223.65,223.63,0.03248162]
[1737976321599,4.4745,223.61,223.54,4.4757]
[1737976322003,4.4745,223.61,223.5,1.4263]
[1737976322206,38.12217227,223.66,223.5,1.4263]
[1737976322702,0.0297301,223.6,223.56,0.03107608]
[1737976323001,1.4105,223.69,223.56,0.03107608]
[1737976323205,0.03137063,223.6,223.56,0.03107608]
[1737976323503,0.03185823,223.6,223.56,0.03107608]
[1737976324207,0.03185823,223.6,223.59,4.4749]
[1737976324805,0.03185823,223.6,223.58,4.4751]
[1737976325001,0.03185823,223.6,223.56,0.03107608]
[1737976325201,651.5704969,228.98,223.57,38.12217227]
[1737976325202,36.0,223.9,223.57,38.12217227]
[1737976325502,1.3669,223.82,223.61,38.12217227]
[1737976325703,1.3669,223.82,223.62,4.5904]
[1737976325906,38.12217227,223.8,223.62,4.5904]
[1737976326103,1.3669,223.82,223.65,38.12217227]
[1737976326305,0.03439097,223.73,223.69,0.03357505]
[1737976326512,0.5596,223.85,223.69,0.03357505]
[1737976326811,2.7098,223.89,223.69,38.12217227]
[1737976327009,0.5596,223.97,223.77,38.12217227]
[1737976327210,0.5596,223.97,223.87,4.4692]
[1737976327410,0.5596,223.97,223.78,4.6952]
[1737976327411,18.05126158,223.98,223.78,4.6952]
[1737976327613,0.03212271,223.94,223.9,0.03088486]
[1737976328421,38.12217227,223.92,223.78,3.24]
[1737976328719,38.12217227,223.84,223.71,1.4552]
[1737976329111,4.4706,223.81,223.71,1.4552]
[1737976329919,0.02847075,223.78,223.74,0.03174143]
[1737976332822,0.02847075,223.78,223.76,4.4714]
[1737976333023,38.12217227,223.96,223.74,0.03174143]
[1737976333218,40.02687227,224.0,223.77,38.12217227]
[1737976333417,4.4681,223.93,223.78,1.4643]
[1737976333618,1.4654,223.99,223.81,38.12217227]
[1737976333814,1.4654,223.99,223.82,1.3977]
[1737976334215,0.02981535,223.93,223.88,0.03274361]
[1737976335125,2.8033,224.06,223.88,0.03274361]
[1737976335319,4.4661,224.03,223.88,0.03274361]
[1737976335521,2.8033,224.06,223.86,0.7776883]
[1737976335919,4.4665,224.01,223.86,0.7776883]
[1737976336326,0.03196974,223.96,223.91,0.03234923]
[1737976336927,0.03196974,223.96,223.91,4.50074923]
[1737976337229,0.03196974,223.96,223.91,0.03234923]
[1737976337727,2.8033,224.06,223.91,0.03234923]
[1737976337728,38.12217227,224.12,223.93,38.12217227]
[1737976337922,38.12217227,224.12,223.94,1.3981]
[1737976339020,0.03439818,224.05,224.01,0.02816813]
[1737976341624,0.03439818,224.05,223.94,1.3981]
[1737976342031,0.03439818,224.05,223.89,3.24]
[1737976342329,38.12217227,224.04,223.89,3.24]
[1737976342720,0.03026754,223.99,223.94,0.03304577]
[1737976346230,4.4676,223.96,223.94,0.03304577]
[1737976347132,4.4677,223.95,223.94,0.03304577]
[1737976347325,0.03026754,223.99,223.78,3.24]
[1737976347529,38.12217227,223.96,223.77,1.4449]
[1737976347723,38.12217227,223.92,223.77,5.916]
[1737976348031,38.12217227,223.88,223.74,1.5676]
[1737976348224,4.4709,223.79,223.74,1.5676]
[1737976348429,0.03282431,223.83,223.79,0.03335483]
[1737976348629,0.03282431,223.83,223.68,38.12217227]
[1737976349042,38.12217227,223.88,223.73,4.4721]
[1737976349228,38.12217227,223.88,223.66,1.4603]
[1737976349428,4.4712,223.78,223.7,4.4726]
[1737976349625,38.12217227,223.88,223.7,4.4726]
[1737976349935,0.03282029,223.76,223.72,0.02871643]
[1737976350234,0.03358706,223.76,223.72,0.02839594]
[1737976352835,0.03358706,223.76,223.63,1.5676]
[1737976353338,0.03358706,223.76,223.63,6.0415]
[1737976353538,0.03358706,223.76,223.63,1.5676]
[1737976353938,4.4729,223.69,223.63,1.5676]
[1737976354235,38.12217227,223.76,223.67,0.03116832]
[1737976354439,0.03303132,223.68,223.67,0.03116832]
[1737976354832,38.12217227,223.76,223.67,0.03116832]
[1737976355035,0.02943146,223.7,223.67,0.03116832]
[1737976355436,0.02943146,223.7,223.68,4.473]
[1737976357242,0.02943146,223.7,223.67,4.50436832]
[1737976357741,38.12217227,223.84,223.67,0.03116832]
[1737976358037,40.09257227,223.88,223.64,38.12217227]
[1737976358341,4.4706,223.81,223.73,4.4719]
[1737976358541,40.09257227,223.88,223.73,4.4719]
[1737976358946,0.03081198,223.8,223.76,0.02818179]
[1737976359141,4.4709,223.79,223.76,0.02818179]
[1737976359336,0.03081198,223.8,223.64,38.12217227]
[1737976359547,38.12217227,223.78,223.54,38.12217227]
[1737976359740,38.12217227,223.74,223.55,0.77874531]
[1737976360043,38.12217227,223.74,223.51,3.24]
[1737976360341,38.12217227,223.74,223.52,0.77888151]
[1737976360538,38.12217227,223.7,223.5,38.12217227]
[1737976360743,0.03224736,223.65,223.6,0.03155248]
[1737976361039,38.12217227,223.7,223.6,0.03155248]
[1737976361241,4.4745,223.61,223.6,0.03155248]
[1737976361741,4.4763,223.52,223.45,4.4775]
[1737976361945,38.12217227,223.57,223.4,2.8933]
[1737976362244,38.12217227,223.53,223.4,2.8933]
[1737976362947,0.03250877,223.49,223.44,0.02973539]
[1737976365142,38.12217227,223.66,223.46,38.12217227]
[1737976365341,38.12217227,223.66,223.45,3.24]
[1737976365641,38.12217227,223.62,223.4,2.8933]
[1737976365945,4.4768,223.5,223.4,2.8933]
[1737976366143,38.15635408,223.53,223.49,0.03230463]
[1737976366443,38.12217227,223.53,223.4,2.8933]
[1737976366646,4.4771,223.48,223.4,2.8933]
[1737976367238,38.12217227,223.49,223.4,2.8933]
[1737976367539,0.02824965,223.46,223.42,0.03128629]
[1737976367946,0.02824965,223.46,223.44,4.4778]
[1737976368747,0.02824965,223.46,223.43,4.478]
[1737976369341,0.02824965,223.46,223.42,0.03128629]
[1737976369539,0.02824965,223.46,223.44,4.4778]
[1737976369940,4.4756,223.56,223.42,0.03128629]
[1737976370142,3.24,223.73,223.42,0.03128629]
[1737976370345,0.7192,223.65,223.4,41.01547227]
[1737976370948,4.4759,223.54,223.4,41.01547227]
[1737976371146,0.02972259,223.55,223.5,0.03153481]
[1737976371451,38.12217227,223.59,223.48,4.4769]
[1737976371749,0.02867764,223.55,223.5,0.02945456]
[1737976372153,38.15084991,223.55,223.5,0.02945456]
[1737976372550,38.15084991,223.55,223.42,4.4781]
[1737976372751,38.12217227,223.55,223.4,2.8933]
[1737976373254,4.4764,223.52,223.4,2.8933]
[1737976373554,38.12217227,223.55,223.4,2.8933]
[1737976373755,0.03374385,223.48,223.44,0.02983901]
[1737976374349,0.03374385,223.48,223.44,4.50763901]
[1737976375056,0.03374385,223.48,223.44,0.02983901]
[1737976376149,38.12217227,223.59,223.44,0.02983901]
[1737976376349,0.7192,223.65,223.44,0.02983901]
[1737976376554,4.4737,223.65,223.58,4.475]
[1737976376754,4.4737,223.65,223.49,38.12217227]
[1737976376755,38.12217227,223.71,223.49,38.12217227]
[1737976377154,4.4737,223.65,223.49,38.12217227]
[1737976377347,38.12217227,223.71,223.58,0.02963002]
[1737976377955,0.0343035,223.67,223.58,0.02963002]
[1737976378355,4.4739,223.64,223.58,0.02963002]
[1737976379054,4.4737,223.65,223.58,4.50453002]
[1737976379354,4.4737,223.65,223.58,0.02963002]
[1737976379550,0.0343035,223.67,223.58,0.02963002]
[1737976380756,0.0343035,223.67,223.59,3.24]
[1737976381454,0.0343035,223.67,223.61,4.4744]
[1737976381658,0.0343035,223.67,223.59,4.6972]
[1737976382661,0.0343035,223.67,223.61,4.4744]
[1737976382861,0.0343035,223.67,223.59,1.4572]
[1737976383061,0.0343035,223.67,223.58,0.02963002]
[1737976383363,4.4749,223.59,223.58,0.02963002]
[1737976384959,0.03181659,223.61,223.5,1.4511]
[1737976385261,4.4753,223.57,223.5,1.4511]
[1737976386061,38.12217227,223.61,223.45,2.8723]
[1737976386258,0.03024003,223.56,223.51,0.03258462]
[1737976386454,4.4769,223.49,223.45,2.8723]
[1737976386860,0.7452,223.66,223.45,2.90615614]
[1737976386861,38.12217227,223.61,223.45,2.90615614]
[1737976387053,0.0333837,223.49,223.45,1.541]
[1737976387254,4.4761,223.53,223.51,0.03149243]
[1737976387458,38.12217227,223.61,223.51,0.03149243]
[1737976387658,38.12217227,223.61,223.45,1.541]
[1737976387962,0.03122555,223.54,223.51,0.03381726]
[1737976388559,4.4761,223.53,223.51,0.03381726]
[1737976388759,0.03122555,223.54,223.51,0.03381726]
[1737976389463,4.4744,223.62,223.55,4.4756]
[1737976389667,38.12217227,223.69,223.55,4.4756]
[1737976389963,4.4737,223.65,223.55,4.4756]
[1737976390161,38.12217227,223.69,223.54,4.4759]
[1737976390660,4.4746,223.61,223.59,0.02967072]
[1737976390857,0.03397391,223.64,223.59,0.02967072]
[1737976391163,4.4747,223.6,223.59,0.02967072]
[1737976391366,0.03397391,223.64,223.59,0.02967072]
[1737976392763,18.48506158,223.8,223.59,0.02967072]
[1737976392960,4.4721,223.73,223.57,39.66887227]
[1737976393164,18.48506158,223.8,223.57,39.66887227]
[1737976393468,4.4727,223.7,223.57,39.66887227]
[1737976393666,38.12217227,223.78,223.57,39.66887227]
[1737976393965,0.02845168,223.66,223.61,0.03196982]
[1737976394363,38.12217227,223.78,223.64,4.4737]
[1737976394557,0.1531,223.81,223.61,38.15178893]
[1737976394766,38.12217227,223.82,223.61,38.12217227]
[1737976395662,6.85220029,223.87,223.65,38.12217227]
[1737976395663,38.12217227,223.86,223.65,38.12217227]
[1737976395871,0.02855168,223.74,223.69,0.02927245]
[1737976396168,4.4708,223.8,223.73,4.4721]
[1737976396568,38.12217227,223.86,223.65,38.12217227]
[1737976397075,38.12217227,223.86,223.63,3.24]
[1737976397271,0.0326874,223.78,223.73,0.02826148]
[1737976397466,3.24,223.91,223.65,38.12217227]
[1737976397666,3.24,223.91,223.63,3.24]
[1737976397667,0.03109862,223.78,223.73,0.02958239]
[1737976397869,4.4698,223.85,223.7,1.5245]
[1737976398271,44.19307256,223.92,223.7,1.5245]
[1737976398870,38.12217227,223.92,223.7,1.5245]
[1737976399073,0.02979043,223.83,223.79,0.0333175]
[1737976399270,38.12217227,223.92,223.79,0.0333175]
[1737976399575,33.38342513,224.01,223.82,4.4703]
[1737976399576,0.03056823,223.83,223.82,4.4703]
[1737976399873,0.03023008,223.88,223.77,38.12217227]
[1737976400072,38.55557227,224.0,223.8,0.0342529]
[1737976400272,0.02827774,223.85,223.8,0.0342529]
[1737976400474,38.55557227,224.0,223.77,38.12217227]
[1737976400773,4.4689,223.89,223.88,0.02878407]
[1737976401170,38.55557227,224.0,223.88,0.02878407]
[1737976401377,38.12217227,224.04,223.88,0.02878407]
[1737976401869,0.02898945,223.96,223.85,38.12217227]
[1737976402074,0.02898945,223.96,223.94,0.0321557]
[1737976402376,0.02898945,223.96,223.85,38.12217227]
[1737976402579,0.02898945,223.96,223.93,0.03250011]
[1737976402877,0.02898945,223.96,223.85,38.12217227]
[1737976403081,0.02898945,223.96,223.92,0.0327762]
[1737976404680,4.49658945,223.96,223.92,0.0327762]
[1737976404882,0.02898945,223.96,223.92,0.0327762]
[1737976405374,18.05126158,224.23,223.92,38.15494847]
[1737976405575,18.05126158,224.23,224.09,38.12217227]
[1737976405783,18.05126158,224.23,224.1,1.4498]
[1737976405979,18.05126158,224.23,224.17,38.12217227]
[1737976406376,18.05126158,224.23,224.13,38.12217227]
[1737976406574,0.6847,224.3,224.17,0.02996949]
[1737976406782,4.4628,224.2,224.17,0.02996949]
[1737976407381,4.463,224.19,224.17,0.02996949]
[1737976407680,0.02919613,224.22,224.17,0.02996949]
[1737976408887,4.4625,224.21,224.17,0.02996949]
[1737976409281,0.02919613,224.22,224.17,0.02996949]
[1737976409882,0.02919613,224.22,224.13,38.12217227]
[1737976410377,0.02919613,224.22,224.17,4.4632]
[1737976410982,4.49149613,224.22,224.17,0.02988519]
[1737976411184,0.02919613,224.22,224.17,0.02988519]
[1737976412387,4.4628,224.2,224.17,0.02988519]
[1737976412590,0.02919613,224.22,224.17,0.02988519]
[1737976413687,4.463,224.19,224.17,0.02988519]
[1737976414182,4.4643,224.12,224.05,38.12217227]
[1737976414578,38.12217227,224.27,224.05,38.12217227]
[1737976415184,38.12217227,224.27,224.06,4.4654]
[1737976415383,4.4643,224.13,224.05,38.12217227]
[1737976415583,0.03407069,224.18,224.05,38.12217227]
[1737976415783,38.12217227,224.27,224.14,0.02824022]
[1737976416084,4.4641,224.13,224.07,4.4651]
[1737976416278,38.12217227,224.27,224.18,0.03343836]
[1737976416479,4.4629,224.19,224.18,0.03343836]
[1737976416684,0.02814627,224.23,224.06,4.3679]
[1737976416887,4.4636,224.16,224.1,4.4645]
[1737976417083,38.12217227,224.27,224.06,4.3679]
[1737976417289,0.0337851,224.17,224.12,0.03305284]
[1737976417482,4.4642,224.13,224.06,2.9646]
[1737976417681,38.12217227,224.23,224.06,2.9646]
[1737976417881,0.03281375,224.14,224.09,0.03032045]
[1737976418085,4.4646,224.11,224.06,2.9646]
[1737976418281,0.03281375,224.14,224.06,2.9646]
[1737976418587,4.4647,224.1,224.09,0.03411448]
[1737976419088,4.4644,224.12,224.09,0.03411448]
[1737976419289,0.03281375,224.14,224.09,0.03411448]
[1737976419594,4.4643,224.12,224.09,0.03411448]
[1737976419983,0.03281375,224.14,224.09,0.03411448]
[1737976420190,0.03281375,224.14,224.1,4.4645]
[1737976420791,4.49671375,224.14,224.09,4.49901448]
[1737976421392,4.49671375,224.14,224.09,0.03411448]
[1737976421593,0.03281375,224.14,224.09,0.03411448]
[1737976421990,0.4043,224.27,224.09,38.15628675]
[1737976422190,0.2008,224.3,224.1,3.24]
[1737976422592,4.4627,224.21,224.1,3.24]
[1737976423089,4.4627,224.2,224.1,3.24]
[1737976423296,0.03135928,224.18,224.14,4.4637]
[1737976423993,0.03135928,224.18,224.16,4.4635]
[1737976424891,0.03135928,224.18,224.13,0.03118082]
[1737976426095,0.03135928,224.18,224.15,4.4637]
[1737976427398,0.03135928,224.18,224.16,4.4634]
[1737976427697,0.03135928,224.18,224.14,1.3447]
[1737976428997,0.03135928,224.18,224.14,4.4638]
[1737976429195,0.03135928,224.18,224.13,0.03118082]
[1737976431400,0.03135928,224.18,224.13,4.49508082]
[1737976431601,0.03135928,224.18,224.13,0.03118082]
[1737976432001,0.03135928,224.18,224.14,4.4637]
[1737976432400,0.03135928,224.18,224.13,0.03118082]
[1737976433895,4.49445928,224.18,224.13,4.49528082]
[1737976434296,0.03135928,224.18,224.15,4.4637]
[1737976435705,0.03135928,224.18,224.13,0.03118082]
[1737976436103,0.03135928,224.18,224.16,4.4633]
[1737976436704,0.03135928,224.18,224.17,4.4633]
[1737976437202,0.03135928,224.18,224.13,0.03118082]
[1737976437505,0.2008,224.3,224.13,0.03118082]
[1737976437705,4.4621,224.23,224.17,4.4631]
[1737976438100,0.6854,224.33,224.12,23.33297495]
[1737976438301,4.4615,224.26,224.16,23.33297495]
[1737976438501,0.6854,224.33,224.17,2.8638]
[1737976438702,0.02856412,224.23,224.2,23.33297495]
[1737976438905,6.27230029,224.37,224.2,23.33297495]
[1737976439806,4.4607,224.3,224.24,4.4618]
[1737976440205,0.03301601,224.29,224.25,0.0339703]
[1737976441006,0.03301601,224.29,224.17,2.8638]
[1737976441198,0.03301601,224.29,224.13,3.24]
[1737976441400,4.4625,224.22,224.16,4.4635]
[1737976441598,4.4625,224.22,224.13,3.24]
[1737976441599,23.33297495,224.32,224.13,3.24]
[1737976441799,0.81971813,224.31,224.13,3.24]
[1737976441999,0.02843083,224.25,224.2,0.03360984]
[1737976442505,4.4625,224.21,224.2,9.84e-06]
[1737976442707,23.33297495,224.24,224.05,2.8975]
[1737976443306,4.463,224.19,224.08,4.465]
[1737976443508,23.33297495,224.28,224.05,2.8975]
[1737976443808,0.03022844,224.19,224.15,4.4636]
[1737976444105,0.4043,224.29,224.08,23.33297495]
[1737976444308,0.03121561,224.19,224.15,4.49659725]
[1737976444509,4.4625,224.21,224.15,4.4635]
[1737976444705,0.03057465,224.19,224.15,4.49406051]
[1737976444908,0.03057465,224.19,224.15,0.03056051]
[1737976446407,4.4617,224.25,224.18,4.4631]
[1737976446607,6.07090029,224.3,224.16,1.6095]
[1737976447110,4.4613,224.28,224.16,24.94247495]
[1737976447309,6.07090029,224.3,224.16,24.94247495]
[1737976447510,0.03190506,224.24,224.2,0.02918248]
[1737976447803,6.07090029,224.36,224.23,4.4621]
[1737976448403,4.4612,224.28,224.21,4.4623]
[1737976448908,6.07090029,224.36,224.16,24.94247495]
[1737976448909,0.03436253,224.27,224.22,0.02826806]
[1737976449102,23.33297495,224.37,224.16,24.94247495]
[1737976449306,0.6633,224.4,224.22,0.02853578]
[1737976449307,0.03153584,224.24,224.22,0.02853578]
[1737976449610,23.33297495,224.33,224.16,1.6095]
[1737976449911,0.03379701,224.25,224.21,0.03275612]
[1737976451105,4.4623,224.22,224.21,0.03275612]
[1737976451709,0.03379701,224.25,224.08,23.33297495]
[1737976451906,0.291,224.28,224.06,1.4787]
[1737976452107,0.6932,224.28,224.1,4.4646]
[1737976452307,0.6932,224.28,224.06,2.9313]
[1737976452911,0.02816103,224.19,224.15,0.0322054]
[1737976453211,0.6932,224.28,224.15,0.0322054]
[1737976453403,0.03011942,224.19,224.15,0.0322054]
[1737976453606,4.4629,224.2,224.15,0.0322054]
[1737976453806,4.4956013,224.19,224.15,0.0322054]
[1737976454011,0.6932,224.28,224.15,0.0322054]
[1737976454207,0.0325541,224.19,224.15,0.0322054]
[1737976454409,4.4635,224.16,224.15,0.0322054]
[1737976454811,4.4635,224.16,224.15,5.4e-06]
[1737976458204,4.4653,224.07,224.01,2.9241]
[1737976458404,23.33297495,224.21,224.01,2.9241]
[1737976458601,23.33297495,224.17,224.01,2.9241]
[1737976458811,0.6935,224.16,224.01,2.9241]
[1737976459112,1.0387,224.16,224.01,2.9241]
[1737976459412,0.02967809,224.11,224.06,0.02898361]
[1737976460506,0.02967809,224.11,224.01,2.9241]
[1737976460507,0.02967809,224.11,223.95,4.4675]
[1737976460702,23.33297495,224.09,223.92,2.9666]
[1737976460908,23.33297495,224.05,223.92,2.9666]
[1737976461115,23.33297495,224.09,223.92,2.9666]
[1737976461913,0.02986597,224.03,223.98,0.03357385]
[1737976463215,4.4669,223.99,223.98,0.03357385]
[1737976465815,4.4686,223.91,223.87,1.3659]
[1737976466015,23.33297495,224.01,223.85,3.0428]
[1737976466215,23.33297495,224.01,223.85,1.4246]
[1737976466416,4.4693,223.87,223.85,1.4246]
[1737976466719,23.33297495,223.97,223.85,1.4246]
[1737976467013,23.36274711,223.93,223.72,23.33297495]
[1737976467316,23.33297495,223.83,223.71,3.0428]